Cogmind - Beta 14 @@@ ROGUE MODE // 2024.08.24 @ 23:29:50 Player: Olafz Result: Self-destructed Performance ------------- Evolutions (5) 2500 Regions Visited (6) 1200 Robots Destroyed (0) 0 Value Destroyed (0) 0 Prototype IDs (0) 0 Alien Tech Used (0) 0 Bonus (1987) 1987 TOTAL SCORE: 5687 Bonus ------- Pacifist 1987 Cogmind --------- Core Integrity 633/1000 Matter 164/300 Energy 51/150 System Corruption 0% Temperature Cool (0) Movement Hovering (36) Location -5/Factory Parts ------- > --- POWER (1) -------- Micro Fission Core > --- PROPULSION (4) --- Linear Gravjet Linear Gravjet Linear Gravjet > --- UTILITY (10) ----- Improved Signal Interpreter > --- WEAPON (2) ------- (None) > --- INVENTORY (5) ---- Linear Gravjet Advanced Weight Redist. System Improved Signal Interpreter Improved Signal Interpreter Heavy Pick Peak State ------------ > --- POWER ------------ Micro Fission Core > --- PROPULSION ------- Linear Gravjet Linear Gravjet Linear Gravjet Linear Gravjet > --- UTILITY ---------- Improved Signal Interpreter > --- WEAPON ----------- (None) > --- INVENTORY -------- Linear Gravjet Advanced Weight Redist. System Improved Signal Interpreter Improved Signal Interpreter Heavy Pick [Rating: 35] Favorites ----------- Power Micro Fission Core Power Core Micro Fission Core Propulsion Linear Gravjet Hover Unit Linear Gravjet Utility Improved Signal Interpreter Device Improved Sensor Array Processor Improved Signal Interpreter Weapon None Build | -11 -10 -9 -8 -7 -6 -5 ------- Run | Yrd Mat Mat Mat Fac Fac Fac Slots Evolved 10 | . . 2 2 2 2 2 Power . | . . . . . . . Propulsion 2 | . . . . 2 . . Utility 8 | . . 2 2 . 2 2 Weapon . | . . . . . . . Parts Attached 8 | . . . 1 2 . 5 Power 1 | . . . . . . 1 Engine . | . . . . . . . Core 1 | . . . . . . 1 Reactor . | . . . . . . . Propulsion 5 | . . . . 1 . 4 Treads . | . . . . . . . Leg . | . . . . . . . Wheel . | . . . . . . . Hover 5 | . . . . 1 . 4 Flight . | . . . . . . . Utility 2 | . . . 1 1 . . Device 1 | . . . 1 . . . Storage . | . . . . . . . Processor 1 | . . . . 1 . . Hackware . | . . . . . . . Protection . | . . . . . . . Artifact . | . . . . . . . Weapon . | . . . . . . . Energy Gun . | . . . . . . . Energy Cannon . | . . . . . . . Ballistic Gun . | . . . . . . . Ballistic Cannon . | . . . . . . . Launcher . | . . . . . . . Special Weapon . | . . . . . . . Impact Weapon . | . . . . . . . Slashing Weapon . | . . . . . . . Piercing Weapon . | . . . . . . . Special Melee Weapon . | . . . . . . . Unidentified Prototypes . | . . . . . . . Parts Lost 3 | . . . 1 1 . 1 Power . | . . . . . . . Propulsion 2 | . . . . 1 . 1 Utility 1 | . . . 1 . . . Weapon . | . . . . . . . Highest Loss Streak 1 | . . . 1 1 . 1 To Critical Strikes . | . . . . . . . Average Slot Usage (%) 5 | . . . 1 6 6 8 Hover 1 | . . . . 2 . 2 Processor 3 | . . . . 3 6 5 Peak Build Rating 35 | . . . 3 4 3 35 Average Rating 4 | . . . . 3 3 7 On Entrance . | . . . . . 3 3 Naked Turns 131 | . 24 55 39 13 . . Heaviest Build 5 | . . . 1 . . 5 Greatest Support 36 | 3 3 3 3 9 3 36 Greatest Overweight (x) . | . . . . . . . Average Overweight (x) . | . . . . . . . Largest Inventory Capacity 5 | 5 5 5 5 5 5 5 Average Capacity 5 | 5 5 5 5 5 5 5 Most Carried 5 | . . . . 3 3 5 Average Carried 2 | . . . . 1 3 4 Final Capacity 5 | 5 5 5 5 5 5 5 Final Carried 5 | . . . . 3 3 5 Class Distribution -------------------- 100% | Mutant Dominant Class ---------------- Mutant | -10/Materials Mutant | -9/Materials Mutant | -8/Materials Mutant | -7/Factory Mutant | -6/Factory Mutant | -5/Factory Resources | -11 -10 -9 -8 -7 -6 -5 ----------- Run | Yrd Mat Mat Mat Fac Fac Fac Matter Collected 105 | 105 . . . . . . Remotely . | . . . . . . . Salvage Created . | . . . . . . . Parts . | . . . . . . . Haulers Intercepted . | . . . . . . . Recyclers Shooed . | . . . . . . . Parts Field Recycled . | . . . . . . . Retrieved Matter . | . . . . . . . Parts Self-Destructed . | . . . . . . . Prevented . | . . . . . . . Kills | -11 -10 -9 -8 -7 -6 -5 ------- Run | Yrd Mat Mat Mat Fac Fac Fac Combat Hostiles Destroyed . | . . . . . . . Classes Destroyed . | . . . . . . . Best Kill Streak . | . . . . . . . Combat Bots Only . | . . . . . . . Max Kills in Single Turn . | . . . . . . . Gunslinging . | . . . . . . . Exploded . | . . . . . . . Melee . | . . . . . . . Uniques/NPCs Destroyed . | . . . . . . . Combat | -11 -10 -9 -8 -7 -6 -5 -------- Run | Yrd Mat Mat Mat Fac Fac Fac Hostile Shots Fired 160 | . 13 32 21 38 9 47 Missed 64 | . 6 9 12 12 6 19 Damage Taken 1385 | . 55 331 153 295 67 484 Core 1201 | . 55 331 131 250 67 367 Absorbed by Shields . | . . . . . . . Core Remaining (%) 71 | 100 78 17 76 64 92 . Volleys Fired . | . . . . . . . Largest . | . . . . . . . Hottest . | . . . . . . . Shots Fired . | . . . . . . . Gun . | . . . . . . . Cannon . | . . . . . . . Launcher . | . . . . . . . Special . | . . . . . . . Kinetic . | . . . . . . . Thermal . | . . . . . . . Explosive . | . . . . . . . Electromagnetic . | . . . . . . . Robot Hit Streak . | . . . . . . . Robot Miss Streak . | . . . . . . . Penetration Max . | . . . . . . . Secondary Targets . | . . . . . . . Shots Hit Robots . | . . . . . . . Core Hits 1 | . . . . . . 1 Critical Kills . | . . . . . . . Critical Parts Destroyed . | . . . . . . . Critical Strikes . | . . . . . . . Melee Attacks . | . . . . . . . Impact . | . . . . . . . Slashing . | . . . . . . . Piercing . | . . . . . . . Sneak Attacks . | . . . . . . . Combat Hostiles . | . . . . . . . Follow-up Attacks . | . . . . . . . Damage Inflicted 25 | . . 3 . . 4 18 Guns . | . . . . . . . Cannons . | . . . . . . . Explosions . | . . . . . . . Melee . | . . . . . . . Ramming 25 | . . 3 . . 4 18 Kinetic . | . . . . . . . Thermal . | . . . . . . . Explosive . | . . . . . . . Electromagnetic . | . . . . . . . Impact . | . . . . . . . Slashing . | . . . . . . . Piercing . | . . . . . . . Highest Corruption 5 | . . . 5 . . . Average Corruption 5 | . . . 5 . . . Corruption Purged . | . . . . . . . Corruption Blocked . | . . . . . . . Overload Shots . | . . . . . . . Overflow Damage . | . . . . . . . Projectiles . | . . . . . . . Explosions . | . . . . . . . Melee . | . . . . . . . Knockbacks . | . . . . . . . Impact . | . . . . . . . Kinetic . | . . . . . . . Secondary . | . . . . . . . Self-Inflicted Damage 11 | . . 1 . . 2 8 Shots . | . . . . . . . Rammed 7 | . . 1 . . 1 5 Targets Rammed 7 | . . 1 . . 1 5 Kicked . | . . . . . . . Crushed . | . . . . . . . Highest Temperature 16 | . . . . . . 16 Average Temperature 9 | . . . . . . 9 Received Heat Transfer 489 | . . 147 54 147 6 135 Siege Activations . | . . . . . . . Robots Corrupted . | . . . . . . . Combat Hostiles . | . . . . . . . Parts Fried . | . . . . . . . Impact Corruptions . | . . . . . . . Robots Melted . | . . . . . . . Combat Hostiles . | . . . . . . . Parts Melted . | . . . . . . . Heat Transferred . | . . . . . . . Parts Sabotaged . | . . . . . . . Parts Stolen . | . . . . . . . Parts Stripped . | . . . . . . . Power Chain Reactions . | . . . . . . . Alert | -11 -10 -9 -8 -7 -6 -5 ------- Run | Yrd Mat Mat Mat Fac Fac Fac Peak Influence 216 | . . 45 53 58 43 216 Initial 28 | . . . 18 23 28 21 Average 87 | . . 19 29 23 30 164 Maximum Alert Level 1 | . . . . . . 1 Low Security (%) 77 | 100 100 100 100 100 100 51 Level 1 22 | . . . . . . 48 Level 2 . | . . . . . . . Level 3 . | . . . . . . . Level 4 . | . . . . . . . Level 5 . | . . . . . . . High Security . | . . . . . . . Max Security . | . . . . . . . Squads Dispatched 8 | . . 2 2 . . 4 Investigation 2 | . . 2 . . . . Extermination . | . . . . . . . Reinforcement 6 | . . . 2 . . 4 Assault . | . . . . . . . Garrison . | . . . . . . . Intercept . | . . . . . . . Searches Triggered . | . . . . . . . Construction Impeded . | . . . . . . . Haulers Reinforced 1 | . . . . . . 1 Active Scanning Responses . | . . . . . . . Cargo Convoy Interrupts . | . . . . . . . Stealth | -11 -10 -9 -8 -7 -6 -5 --------- Run | Yrd Mat Mat Mat Fac Fac Fac Distress Signals 1 | . . 1 . . . . Communications Jammed . | . . . . . . . Distress Signals . | . . . . . . . Times Spotted 41 | . 6 5 9 5 2 14 Peak Tracking Total 9 | . 7 5 9 3 2 5 Tactical Retreats 5 | . . 1 . 1 . 3 Traps | -11 -10 -9 -8 -7 -6 -5 ------- Run | Yrd Mat Mat Mat Fac Fac Fac Traps Triggered 6 | . . 2 . 1 . 3 Indirectly . | . . . . . . . Trap Hack Attempts . | . . . . . . . Triggered . | . . . . . . . Disarmed . | . . . . . . . Reprogrammed . | . . . . . . . Reused . | . . . . . . . Traps Extracted . | . . . . . . . Installed . | . . . . . . . Triggered . | . . . . . . . Machines | -11 -10 -9 -8 -7 -6 -5 ---------- Run | Yrd Mat Mat Mat Fac Fac Fac Machines Disabled . | . . . . . . . Max in Single Turn . | . . . . . . . Machines Repaired . | . . . . . . . Machines Dismantled . | . . . . . . . Machines Sabotaged . | . . . . . . . Overloaded Fab Kills . | . . . . . . . Hacking | -11 -10 -9 -8 -7 -6 -5 --------- Run | Yrd Mat Mat Mat Fac Fac Fac Machines Accessed . | . . . . . . . Terminals . | . . . . . . . Fabricators . | . . . . . . . Repair Stations . | . . . . . . . Recycling Units . | . . . . . . . Scanalyzers . | . . . . . . . Garrison Access . | . . . . . . . Total Hacks . | . . . . . . . Successful . | . . . . . . . Failed . | . . . . . . . Catastrophic . | . . . . . . . Database Lockouts . | . . . . . . . Manual . | . . . . . . . Terminals . | . . . . . . . Fabricators . | . . . . . . . Repair Stations . | . . . . . . . Recycling Units . | . . . . . . . Scanalyzers . | . . . . . . . Garrison Access . | . . . . . . . Terminal Hacks . | . . . . . . . Fabricator Hacks . | . . . . . . . Repair Station Hacks . | . . . . . . . Recycling Unit Hacks . | . . . . . . . Scanalyzer . | . . . . . . . Garrison Access Hacks . | . . . . . . . Unauthorized Hacks . | . . . . . . . Terminals . | . . . . . . . Fabricators . | . . . . . . . Repair Stations . | . . . . . . . Recycling Units . | . . . . . . . Scanalyzers . | . . . . . . . Garrison Access . | . . . . . . . Data Cores Recovered . | . . . . . . . Used . | . . . . . . . Hacking Detections . | . . . . . . . Full Trace Events . | . . . . . . . Feedback Events . | . . . . . . . Feedback Blocked . | . . . . . . . Robot Schematics Acquired . | . . . . . . . Robots Built . | . . . . . . . Authchips . | . . . . . . . Time . | . . . . . . . Total Robot Build Rating . | . . . . . . . Part Schematics Acquired . | . . . . . . . Parts Built . | . . . . . . . Authchips . | . . . . . . . Time . | . . . . . . . Total Part Build Rating . | . . . . . . . Parts Repaired . | . . . . . . . Time . | . . . . . . . Parts Recycled . | . . . . . . . Recycled Matter . | . . . . . . . Retrieved Matter . | . . . . . . . Retrieved Components . | . . . . . . . Parts Scanalyzed . | . . . . . . . Part Schematics Acquired . | . . . . . . . Parts Damaged . | . . . . . . . Bothacking | -11 -10 -9 -8 -7 -6 -5 ------------ Run | Yrd Mat Mat Mat Fac Fac Fac Used RIF Installer . | . . . . . . . Robots Hacked . | . . . . . . . Non-combat . | . . . . . . . Combat . | . . . . . . . Robot Hacks Applied . | . . . . . . . Relay Couplers Released . | . . . . . . . Fabnet Peak Effective % . | . . . . . . . Robots Rewired . | . . . . . . . Allies Hacked . | . . . . . . . Hacks Repelled . | . . . . . . . Allies | -11 -10 -9 -8 -7 -6 -5 -------- Run | Yrd Mat Mat Mat Fac Fac Fac Total Allies 2 | . . . . 2 . . Largest Group 2 | . . . . 2 . . Highest-Rated Group 62 | . . . . 62 . . Highest-Rated Ally 31 | . . . . 31 . . Total Orders . | . . . . . . . Ally Attacks 1 | . . . . 1 . . Total Damage . | . . . . . . . Kills . | . . . . . . . Allies Corrupted . | . . . . . . . Allies Melted . | . . . . . . . Intel | -11 -10 -9 -8 -7 -6 -5 ------- Run | Yrd Mat Mat Mat Fac Fac Fac Robot Analysis Total . | . . . . . . . Derelict Logs Recovered . | . . . . . . . Drone Launches . | . . . . . . . Drone Recoveries . | . . . . . . . Exploration | -11 -10 -9 -8 -7 -6 -5 ------------- Run | Yrd Mat Mat Mat Fac Fac Fac Turns Passed 534 | 9 24 55 49 139 13 245 Spaces Moved 944 | 18 48 107 95 249 24 403 Core 801 | 18 48 107 95 165 24 344 Treads . | . . . . . . . Legs . | . . . . . . . Wheels . | . . . . . . . Hover 143 | . . . . 84 . 59 Flight . | . . . . . . . Fastest Speed 28 | 50 50 50 50 50 50 28 Average Speed 49 | 50 50 50 50 53 50 47 Slowest Speed 60 | 50 50 50 50 60 50 50 Overloaded Moves . | . . . . . . . Propulsion Burnouts . | . . . . . . . Robots Hopped . | . . . . . . . Cave-ins Triggered . | . . . . . . . Exploration Rate (%) 13 | 3 20 18 19 11 1 21 Regions Visited 6 Branch Regions . Pre-discovered Areas . | . . . . . . . Known Exits Taken 2 | . . . . 1 1 . Unknown Exits Taken 4 | 1 1 1 1 . . . Scrap Searched . | . . . . . . . Spaces Dug . | . . . . . . . Terrain Destroyed . | . . . . . . . Melee . | . . . . . . . Projectile . | . . . . . . . AOE . | . . . . . . . Terrain Rammed . | . . . . . . . Walls Destroyed . | . . . . . . . Machines Disabled . | . . . . . . . Actions | -11 -10 -9 -8 -7 -6 -5 --------- Run | Yrd Mat Mat Mat Fac Fac Fac Total 998 | 17 47 107 95 253 24 455 Wait 7 | . . . . . . 7 Move 939 | 17 47 106 94 248 24 403 Hop . | . . . . . . . Pick Up 6 | . . . . 3 . 3 Fast Attach 7 | . . . 1 2 . 4 Attach 1 | . . . . . . 1 Detach . | . . . . . . . Swap . | . . . . . . . Drop . | . . . . . . . Fire . | . . . . . . . Melee . | . . . . . . . Ram 6 | . . 1 . . . 5 Kick . | . . . . . . . Crush . | . . . . . . . Escape Stasis 32 | . . . . . . 32 Rewire . | . . . . . . . Trap . | . . . . . . . Miscellaneous . | . . . . . . . Route ------- -11/Scrapyard -10/Materials -9/Materials (discovered 2 exits: [*Mat] / [*Min]) -8/Materials -7/Factory -6/Factory -5/Factory History --------- Turn | Location | Event 2 | -11/Scrapyard | Met Revision 17 3 | -11/Scrapyard | Discovered new exit (range 15) 10 | -11/Scrapyard | Entered Materials 27 | -10/Materials | Discovered new exit (range 15) 34 | -10/Materials | Entered another Materials area 34 | -9/Materials | Evolved 2 slots: Utility x2 74 | -9/Materials | Core integrity fell below 50% 74 | -9/Materials | Discovered new exit (range 16) 84 | -9/Materials | Discovered new exit (range 10) 88 | -9/Materials | Core integrity fell below 20% 89 | -9/Materials | Entered another Materials area 89 | -8/Materials | Evolved 2 slots: Utility x2 131 | -8/Materials | Discovered new exit (range 16) 138 | -8/Materials | Entered Factory 138 | -7/Factory | Evolved 2 slots: Propulsion x2 251 | -7/Factory | Allied Derelicts emerged from ambush trap array 269 | -7/Factory | Discovered new exit (range 16) 276 | -7/Factory | Identified exit to Factory 277 | -7/Factory | Entered another Factory area 277 | -6/Factory | Evolved 2 slots: Utility x2 287 | -6/Factory | Discovered new exit (range 6) 289 | -6/Factory | Identified exit to Factory 290 | -6/Factory | Entered another Factory area 290 | -5/Factory | Evolved 2 slots: Utility x2 301 | -5/Factory | Build established: Mutant 535 | -5/Factory | Self-destructed Last Messages --------------- Field strength at 34. Field strength at 28. Field strength at 22. Field strength at 16. Field strength at 10. Field strength at 4. Stasis field depleted. U-05 Engineer lays Concrete. Slammed into A-15 Conveyor. A-15 Conveyor calls for reinforcements. ALERT: Hostile activity reported, dispatching reinforcements to area. Slammed into A-15 Conveyor. Acquired Linear Gravjet. ALERT: Security rotation in progress. Linear Gravjet destroyed. Triggered Stasis Trap. A bubble of rippling energy engulfs the area. Field strength at 87. Field strength at 74. Field strength at 61. Map ----- +----------------------------------------------------+ | ?????????????????????????????????????????????????? | | ?????????????????????????????????????????????????? | | ?????????????????????????????????????????????????? | | ?????????????????????????????????????????????????? | | ?????????????????????????????????????????????????? | | ?????????????????????????????????????????????????? | | ?????????????????????????????????????????????????? | | ?????????????????????????????##??????????????????? | | ####???????????????????????? #??????????????????? | | = #???????????????????????? #??????????????????? | | #????????????!#????""???? #?????????##???####? | | #??????????? #????"" ?"" ########### ? | | #??????""""" # ?? # #! """"" + | | #??? # """ """ # # ""T"" # | | #? """"""""" ]# """ """ # # # | | " #? # """ """ # # ! # | | " #? """"""""" #? # !# """ # | | " #??? #??? # #?""" %# | | " #?????"""""" #????? # ?????" # | | #??????? ????????? ?? ????????? # | | #############+#############+######+#############+# | | o | | | | | | | | @ t k | | ####################+#############+############### | | #?????????? ?????????? ????????????? | | """"" #???????? ??????? ??????????? | | """"" ]#?????? #???? ??????????? | | """"" #?????# #??? #?????????? | | """"" #?????# = #??# #?????????? | | #?????# #??# #?????????? | | ! #?????# #??# #?????????? | | #####?##?????# #??# #?????????? | | ?????????????# #??###########?????????? | | ?????????????# ! #??????????????????????? | | ?????????????# #??????????????????????? | | ?????????????# #??????????????????????? | | ?????????????##############??????????????????????? | | ?????????????????????????????????????????????????? | | ?????????????????????????????????????????????????? | | ?????????????????????????????????????????????????? | | ?????????????????????????????????????????????????? | | ?????????????????????????????????????????????????? | | ?????????????????????????????????????????????????? | | ?????????????????????????????????????????????????? | | ?????????????????????????????????????????????????? | | ?????????????????????????????????????????????????? | | ?????????????????????????????????????????????????? | +----------------------------------------------------+ Best States ------------- Heat Dissipation 40 Energy Generation 15 Energy Capacity 150 Matter Stores 209 Matter Capacity 300 Sight Range 16 Robot Scan Range 15 Terrain Scan Density 10 Evasion (%) 59 Item Schematics ----------------- None Robot Schematics ------------------ None Fabricated ------------ Nothing Alien Tech Used ----------------- None Achievements -------------- None Challenges ------------ None Game ------ Seed UltimateGuidedFirepult Manual? 0 Play Time 00:09:53 Cumulative 247.8 hours Start 2024.08.24 @ 23:22:51 End 2024.08.24 @ 23:29:50 Sessions 1 Manual Loads 0 Difficulty Rogue Special Mode None Game No. 433 Rogue 431 Adventurer 2 Explorer 0 Win Type - Total 11 Types 8/0/1/2/0/0/0/0/0 Lore% 73 Gallery% 68 Achievement% 57 Wizard Run 0 Options --------- Layout 0 ASCII 0 Keyboard 1 Movement Numpad Keybinds 1 Fullscreen 2 Font 18/SmallcapsGlow Map View 76x50 Zoom Use 0% Tactical HUD 1 Map Filters NONE Filters NONE Steam 1 RUN: 8fc9b42f-f375-4127-805e-197c24401419